Cogmind - Beta 16 --- EXPLORER MODE // 2026.01.07 @ 09:43:29 Player: K.K.Y. Result: Destroyed by YS-QTL(R) with Subdweller Beam Cannon Performance ------------- Evolutions (0) 0 Regions Visited (3) 600 Robots Destroyed (31) 155 Value Destroyed (834) 834 Prototype IDs (12) 240 Alien Tech Used (0) 0 Bonus (120) 120 TOTAL SCORE: 1949 Bonus ------- Follower Combat Kills 120 Cogmind --------- Core Integrity 0/250 Matter 245/300 Energy 148/170 System Corruption 0% Temperature Cool (72) Movement Treading (240) Ox1 Location -10/Subcaves Parts ------- > --- POWER (1) -------- Makeshift Power Source > --- PROPULSION (2) --- Light Treads > --- UTILITY (3) ------ Large Storage Unit Utility Shielding Light Armor Plating > --- WEAPON (2) ------- Particle Gun Beam Cannon > --- INVENTORY (15) --- Ion Engine Light Nuclear Core Makeshift Power Source Arachnoskeleton Medium Storage Unit High-capacity Storage Unit Machine Analyzer Makeshift Terrain Scanner Medium Laser Multitool Peak State ------------ > --- POWER ------------ Makeshift Power Source > --- PROPULSION ------- Light Treads Light Treads > --- UTILITY ---------- Improved Heat Sink Large Storage Unit Sensor Array > --- WEAPON ----------- Assault Rifle Barrage Gun > --- INVENTORY -------- Ion Engine Light Nuclear Core Arachnoskeleton Medium Storage Unit High-capacity Storage Unit Machine Analyzer Utility Shielding Light Armor Plating Medium Laser Particle Gun Beam Cannon Battle Rifle Mining Laser [Rating: 18] Favorites ----------- Power Ion Engine Engine Ion Engine Propulsion Light Treads Treads Light Treads Utility Sensor Array Device Sensor Array Storage Large Storage Unit Processor Targeting Computer Protection Light Armor Plating Weapon Assault Rifle Energy Gun Medium Laser Energy Cannon Beam Cannon Ballistic Gun Assault Rifle Special Weapon Mining Laser Build | -11 -10 -10 -10 ------- Run | Yrd Mat Min Sub Slots Evolved 1 | . 1 . . Power . | . . . . Propulsion . | . . . . Utility 1 | . 1 . . Weapon . | . . . . Parts Attached 25 | 8 3 . 14 Power 3 | 1 1 . 1 Engine 3 | 1 1 . 1 Core . | . . . . Reactor . | . . . . Propulsion 4 | 2 . . 2 Treads 4 | 2 . . 2 Leg . | . . . . Wheel . | . . . . Hover . | . . . . Flight . | . . . . Utility 9 | 3 2 . 4 Device 4 | 1 1 . 2 Storage 2 | 1 1 . . Processor 1 | 1 . . . Hackware . | . . . . Protection 2 | . . . 2 Artifact . | . . . . Weapon 9 | 2 . . 7 Energy Gun 2 | . . . 2 Energy Cannon 1 | . . . 1 Ballistic Gun 4 | 2 . . 2 Ballistic Cannon . | . . . . Launcher . | . . . . Special Weapon 2 | . . . 2 Impact Weapon . | . . . . Slashing Weapon . | . . . . Piercing Weapon . | . . . . Special Melee Weapon . | . . . . Unidentified Prototypes . | . . . . Parts Lost 10 | . . . 10 Power . | . . . . Propulsion 3 | . . . 3 Utility 3 | . . . 3 Weapon 4 | . . . 4 Highest Loss Streak 2 | . . . 2 To Critical Strikes . | . . . . Average Backups 10 | 2 6 10 12 Power 1 | . . 1 1 Propulsion 1 | . . 1 2 Utility 4 | 1 3 4 4 Weapon 3 | . 3 4 3 Tool/Special . | . . . . Unused Backups 8 | 1 . . 7 Power 3 | . . . 3 Propulsion 1 | . . . 1 Utility 3 | . . . 3 Weapon 1 | 1 . . . Tool/Special . | . . . . Average Slot Usage (%) 87 | . 98 100 78 Engine 12 | . 12 12 12 Treads 18 | . 25 25 13 Device 19 | . 23 25 15 Storage 11 | . 10 12 12 Ballistic Gun 19 | . 25 25 15 Special Weapon 3 | . . . 7 Peak Build Rating 18 | 7 9 9 18 Average Rating 9 | 5 8 9 11 On Entrance 6 | . 7 9 9 Avg Prop Armor Cover (%) . | . . . . Naked Turns . | . . . . Heaviest Build 32 | 10 31 31 32 Greatest Support 40 | 40 40 40 40 Greatest Overweight (x) 10 | . . . 10 Average Overweight (x) . | . . . 2 Largest Inventory Capacity 15 | 10 15 15 15 Average Capacity 13 | 5 10 15 15 Most Carried 15 | 5 9 11 15 Average Carried 11 | 3 6 10 13 Final Capacity 15 | 5 15 15 15 Final Carried 12 | 3 9 11 12 Class Distribution -------------------- 100% | Hacker-Mutant Dominant Class ---------------- Hacker-Mutant | -10/Materials Hacker-Mutant | -10/Mines Hacker-Mutant | -10/Subcaves Resources | -11 -10 -10 -10 ----------- Run | Yrd Mat Min Sub Matter Collected 989 | 304 234 12 439 Remotely . | . . . . Salvage Created 1079 | 145 373 . 561 Parts 73 | 8 35 . 30 Haulers Intercepted 2 | . 2 . . Recyclers Shooed . | . . . . Parts Field Recycled . | . . . . Retrieved Matter . | . . . . Parts Self-Destructed . | . . . . Prevented . | . . . . Parts Restored . | . . . . Kills | -11 -10 -10 -10 ------- Run | Yrd Mat Min Sub Combat Hostiles Destroyed 20 | . 7 . 13 Guns 18 | . 7 . 11 Cannons 2 | . . . 2 Classes Destroyed 10 | 2 6 . 2 Worker 2 | . 2 . . Builder 1 | . 1 . . Tunneler 2 | 2 . . . Hauler 2 | . 2 . . Recycler 1 | 1 . . . Watcher 3 | . 3 . . Swarmer 3 | . 3 . . Grunt 6 | . 4 . 2 Sentry 1 | . . . 1 Subdweller 10 | . . . 10 Best Kill Streak 4 | 2 4 . 3 Combat Bots Only 3 | . 3 . 3 Max Kills in Single Turn 4 | 1 4 . 1 Gunslinging . | . . . . Exploded . | . . . . Melee . | . . . . Uniques/NPCs Destroyed . | . . . . Combat | -11 -10 -10 -10 -------- Run | Yrd Mat Min Sub Hostile Shots Fired 134 | . 28 . 106 Missed 28 | . 8 . 20 Hits 106 | . 20 . 86 Projectile 106 | . 20 . 86 Critical Strikes 5 | . . . 5 Damage Taken 1523 | . 265 . 1258 Core 264 | . 45 . 219 Absorbed by Shields . | . . . . Ignored by Resistances 883 | . 160 . 723 Core Remaining (%) 100 | 100 . . . Volleys Fired 112 | 4 29 2 77 Largest 2 | 2 2 2 2 Hottest 130 | 40 40 40 130 Shots Fired 204 | 8 58 4 134 Gun 177 | 8 58 4 107 Cannon 3 | . . . 3 Launcher . | . . . . Special 24 | . . . 24 Kinetic 160 | 8 58 4 90 Thermal 44 | . . . 44 Explosive . | . . . . Electromagnetic . | . . . . Robot Hit Streak 44 | 3 44 3 36 Robot Miss Streak 1 | 1 1 1 1 Penetration Max . | . . . . Secondary Targets . | . . . . Shots Hit Robots 156 | 6 50 3 97 Core Hits 51 | 4 21 . 26 Critical Kills . | . . . . Critical Parts Destroyed . | . . . . Critical Strikes 2 | . . . 2 Burn 2 | . . . 2 Melee Attacks . | . . . . Impact . | . . . . Slashing . | . . . . Piercing . | . . . . Sneak Attacks . | . . . . Combat Hostiles . | . . . . Follow-up Attacks . | . . . . Damage Inflicted 2336 | 75 913 40 1308 Guns 1931 | 75 619 40 1197 Cannons 35 | . . . 35 Explosions 294 | . 294 . . Melee . | . . . . Ramming . | . . . . Kinetic 1713 | 75 619 40 979 Thermal 623 | . 294 . 329 Explosive . | . . . . Electromagnetic . | . . . . Impact . | . . . . Slashing . | . . . . Piercing . | . . . . Highest Corruption . | . . . . Average Corruption . | . . . . Corruption Purged . | . . . . Corruption Blocked . | . . . . Overload Shots . | . . . . Overflow Damage 61 | . 61 . . Projectiles . | . . . . Explosions 61 | . 61 . . Melee . | . . . . Knockbacks . | . . . . Impact . | . . . . Kinetic . | . . . . Secondary . | . . . . Self-Inflicted Damage 105 | . 105 . . Shots 2 | . 2 . . Rammed . | . . . . Targets Rammed . | . . . . Kicked . | . . . . Crushed . | . . . . Highest Temperature 63 | 6 6 . 63 Average Temperature 10 | 6 2 . 12 Received Heat Transfer 441 | . 96 . 345 Siege Activations . | . . . . Martial Activations . | . . . . Shielding Activations . | . . . . Robots Disrupted . | . . . . Combat Hostiles . | . . . . Robots Corrupted . | . . . . Combat Hostiles . | . . . . Parts Fried . | . . . . Impact Corruptions . | . . . . Robots Melted . | . . . . Combat Hostiles . | . . . . Parts Melted 3 | . 1 . 2 Heat Transferred 1226 | . 200 . 1026 Parts Sabotaged . | . . . . Parts Stolen . | . . . . Parts Stripped . | . . . . Power Chain Reactions . | . . . . Alert | -11 -10 -10 -10 ------- Run | Yrd Mat Min Sub Maximum Alert Level . | . . . . Low Security (%) 100 | 100 100 100 . Level 1 . | . . . . Level 2 . | . . . . Level 3 . | . . . . Level 4 . | . . . . Level 5 . | . . . . High Security . | . . . . Max Security . | . . . . Peak Influence 87 | 10 87 . . Initial . | . . . . Average 6 | . 12 . . Influence Increases 380 | 15 295 . 70 Destroy 0b10 Robot/C 200 | . 140 . 60 Destroy 0b10 Robot/NC 55 | 15 40 . . Destroy Leader 40 | . 30 . 10 Successful Hack 6 | . 6 . . Disable Machine 20 | . 20 . . Destroy Structure 44 | . 44 . . Lose Combat Pursuer 15 | . 15 . . Influence Decreases 380 | 15 295 . 70 Time Decay 360 | 15 295 . 50 Lost Ally 20 | . . . 20 Squads Dispatched . | . . . . Investigation . | . . . . Extermination . | . . . . Reinforcement . | . . . . Assault . | . . . . Garrison . | . . . . Intercept . | . . . . Searches Triggered . | . . . . Construction Impeded . | . . . . Haulers Reinforced . | . . . . Active Scanning Responses . | . . . . Cargo Convoy Interrupts . | . . . . Stealth | -11 -10 -10 -10 --------- Run | Yrd Mat Min Sub Distress Signals . | . . . . Communications Jammed . | . . . . Distress Signals . | . . . . Times Spotted 33 | . 12 1 20 Peak Tracking Total 4 | . 3 1 4 Tactical Retreats 1 | . 1 . . Traps | -11 -10 -10 -10 ------- Run | Yrd Mat Min Sub Traps Triggered 3 | . 2 . 1 Indirectly . | . . . . Trap Hack Attempts . | . . . . Triggered . | . . . . Disarmed . | . . . . Reprogrammed . | . . . . Reused . | . . . . Traps Extracted . | . . . . Installed . | . . . . Triggered . | . . . . Machines | -11 -10 -10 -10 ---------- Run | Yrd Mat Min Sub Machines Disabled 6 | . 5 . 1 Max in Single Turn 5 | . 5 . 1 Machines Repaired . | . . . . Machines Dismantled . | . . . . Machines Sabotaged . | . . . . Overloaded Fab Kills . | . . . . Hacking | -11 -10 -10 -10 --------- Run | Yrd Mat Min Sub Machines Accessed 10 | . 8 . 2 Terminals 8 | . 8 . . Fabricators . | . . . . Repair Stations . | . . . . Recycling Units . | . . . . Scanalyzers . | . . . . Garrison Access . | . . . . Total Hacks 17 | . 11 . 6 Successful 15 | . 9 . 6 Failed 2 | . 2 . . Catastrophic . | . . . . Database Lockouts . | . . . . Manual 10 | . 10 . . Terminals 11 | . 11 . . Fabricators . | . . . . Repair Stations . | . . . . Recycling Units . | . . . . Scanalyzers . | . . . . Garrison Access . | . . . . Terminal Hacks 7 | . 1 . 6 Record 5 | . . . 5 Robot Analysis 1 | . 1 . . Proto ID Catalog 1 | . . . 1 Fabricator Hacks . | . . . . Repair Station Hacks . | . . . . Recycling Unit Hacks . | . . . . Scanalyzer . | . . . . Garrison Access Hacks . | . . . . Unauthorized Hacks 8 | . 8 . . Terminals 8 | . 8 . . Botnet 8 | . 8 . . Fabricators . | . . . . Repair Stations . | . . . . Recycling Units . | . . . . Scanalyzers . | . . . . Garrison Access . | . . . . Data Cores Recovered . | . . . . Used . | . . . . Hacking Detections 1 | . 1 . . Full Trace Events . | . . . . Feedback Events . | . . . . Feedback Blocked . | . . . . Robot Schematics Acquired . | . . . . Robots Built . | . . . . Authchips . | . . . . Time . | . . . . Total Robot Build Rating . | . . . . Part Schematics Acquired . | . . . . Parts Built . | . . . . Authchips . | . . . . Time . | . . . . Total Part Build Rating . | . . . . Part Studies Acquired . | . . . . Parts Repaired . | . . . . Time . | . . . . Parts Recycled . | . . . . Recycled Matter . | . . . . Retrieved Matter . | . . . . Retrieved Components . | . . . . Parts Scanalyzed . | . . . . Part Schematics Acquired . | . . . . Parts Damaged . | . . . . Bothacking | -11 -10 -10 -10 ------------ Run | Yrd Mat Min Sub Used RIF Installer . | . . . . Robots Hacked . | . . . . Non-combat . | . . . . Combat . | . . . . Robot Hacks Applied . | . . . . Relay Couplers Released . | . . . . Fabnet Peak Effective % . | . . . . Robots Rewired . | . . . . Allies Hacked . | . . . . Hacks Repelled . | . . . . Allies | -11 -10 -10 -10 -------- Run | Yrd Mat Min Sub Total Allies 5 | . . 5 . Largest Group 5 | . . 5 5 Highest-Rated Group 84 | . . 84 84 Highest-Rated Ally 31 | . . 31 31 Total Orders . | . . . . Ally Attacks 32 | . . . 32 Total Damage 377 | . . . 377 Kills 4 | . . . 4 Allies Corrupted . | . . . . Allies Melted . | . . . . Intel | -11 -10 -10 -10 ------- Run | Yrd Mat Min Sub Active Infowar (turns) 4472 | 63 1153 1011 2245 Sensors 4470 | 63 1151 1011 2245 Structural 2432 | . 1021 1011 400 Robot Analysis Total 1 | . 1 . . Derelict Logs Recovered 2 | . . . 2 Drone Launches . | . . . . Drone Recoveries . | . . . . Exploration | -11 -10 -10 -10 ------------- Run | Yrd Mat Min Sub Turns Passed 4992 | 95 1153 1011 2733 Spaces Moved 2248 | 52 626 584 986 Core 233 | 16 . . 217 Treads 2015 | 36 626 584 769 Legs . | . . . . Wheels . | . . . . Hover . | . . . . Flight . | . . . . Fastest Speed 50 | 50 160 160 160 Average Speed 195 | 126 160 160 242 Slowest Speed 550 | 160 160 160 550 Overloaded Moves . | . . . . Propulsion Burnouts . | . . . . Robots Hopped . | . . . . Potential Cave-ins . | . . . . Cave-ins Triggered . | . . . . Exploration Rate (%) 68 | 4 100 99 69 Regions Visited 3 Branch Regions 2 Pre-discovered Areas 3 | . . . 3 Known Exits Taken 3 | 1 1 1 . Unknown Exits Taken . | . . . . Scrap Searched 5 | . . . 5 Spaces Dug 2 | . . . 2 Terrain Destroyed 49 | . 47 . 2 Melee . | . . . . Projectile 2 | . . . 2 AOE 47 | . 47 . . Terrain Rammed . | . . . . Walls Destroyed . | . . . . Machines Disabled . | . . . . Actions | -11 -10 -10 -10 --------- Run | Yrd Mat Min Sub Total 2599 | 73 720 657 1149 Wait 169 | . 49 70 50 Move 2245 | 51 625 583 986 Hop . | . . . . Pick Up 23 | 8 7 2 6 Fast Attach 8 | 3 3 . 2 Attach 15 | 5 1 . 9 Detach 4 | 1 1 . 2 Swap 16 | . 2 . 14 Drop 7 | 1 3 . 3 Fire 112 | 4 29 2 77 Melee . | . . . . Ram . | . . . . Kick . | . . . . Crush . | . . . . Escape Stasis . | . . . . Rewire . | . . . . Trap . | . . . . Miscellaneous . | . . . . Route ------- -11/Scrapyard -10/Materials (discovered 5 exits: *Mat x3 / *Min / *Sub) -10/Mines (discovered 3 exits: *Mat x2 / *Sub) -10/Subcaves (discovered 1 exit: *Mat) History --------- Turn | Location | Event 9 | -11/Scrapyard | Identified exit to Materials 9 | -11/Scrapyard | Discovered exit to Materials (range 16) 96 | -11/Scrapyard | Entered Materials 96 | -10/Materials | Evolved 1 slot: Utility x1 248 | -10/Materials | Identified exit to Mines 248 | -10/Materials | Discovered exit to Mines (range 13) 301 | -10/Materials | Build established: Hacker-Mutant 424 | -10/Materials | Identified exit to Materials 424 | -10/Materials | Discovered exit to Materials (range 11) 511 | -10/Materials | Identified exit to Subcaves 511 | -10/Materials | Discovered exit to Subcaves (range 9) 555 | -10/Materials | Discovered exit to Materials (range 16) 780 | -10/Materials | Discovered exit to Materials (range 4) 1249 | -10/Materials | Entered Mines 1270 | -10/Mines | Met a Derelict bent on vengeance 1410 | -10/Mines | Discovered exit to Materials (range 11) 1924 | -10/Mines | Discovered exit to Materials (range 9) 1934 | -10/Mines | Assisted by bots powering up and referring to "LRC-V3" 2240 | -10/Mines | Discovered exit to Subcaves (range 6) 2260 | -10/Mines | Entered Subcaves 2260 | -10/Subcaves | Accompanied by 5 allies 2261 | -10/Subcaves | Approached by a straggling Scientist 2265 | -10/Subcaves | Led the pair of lost Derelicts to an unsafe place 2451 | -10/Subcaves | A swath of the cavern ceiling suddenly collapsed 2494 | -10/Subcaves | Visited Clippyterm 2498 | -10/Subcaves | Learned Factory emergency access door positions 2498 | -10/Subcaves | Learned location of Deep Caves (-7) 2676 | -10/Subcaves | Visited 4L-MR0's lab 2755 | -10/Subcaves | Found Arachnoskeleton 2931 | -10/Subcaves | Identified exit to Materials 2931 | -10/Subcaves | Discovered exit to Materials (range 14) 3896 | -10/Subcaves | Learned location of Recycling (-7) 4136 | -10/Subcaves | Shifting Twisted Machinery released Mak. Power Source 4368 | -10/Subcaves | Core integrity fell below 50% 4373 | -10/Subcaves | Learned location of Zion (-7) 4970 | -10/Subcaves | Core integrity fell below 20% 4993 | -10/Subcaves | Destroyed by YS-QTL(R) with Subdweller Beam Cannon Last Messages --------------- 04523_ WU-U5A(R) suffers critical hit (Burn). 04535_ Sub. Laser melted. 04535_ WU-U5A(R) destroyed. 04538_ BJ-3I1(R) suffers critical hit (Burn). 04539_ Imp. Heat Sink destroyed. 04542_ BJ-3I1(R) affixes Scrap Shield Fragment to Scrap Shield. 04557_ BJ-3I1(R) destroyed. 04560_ Acquired 57 matter. 04561_ Acquired 4 matter. 04804_ SZ-1I9(R): "LEAVESUB!" 04811_ Lgt. Treads destroyed. 04817_ Battle Rifle destroyed. 04817_ SZ-1I9(R) destroyed. 04821_ Acquired 6 matter. 04871_ Acquired Mak. Terrain Scanner. 04874_ Acquired Mak. Power Source. 04911_ Acquired Multitool. 04981_ Mining Laser destroyed. 04987_ S1-25H(R) destroyed. Map ----- +----------------------------------------------------+ | | | | | | | | | ?????????????????????????????????????????????????? | | ?????????????????????????????????????????????????? | | ?????????????????????????????????????????????????? | | ?????????????????????????????????????????????????? | | ?????????????????????????????????????????????????? | | ?????????????????????????????????????????????????? | | ?????????????????????????????????????????????????? | | ?????????????????????????????????????????????????? | | ?????????????????????????????????????????????????? | | ?????????????????????????????????????????????????? | | ?????????????????????????????????????????????????? | | ?????????????????????????????????????????????????? | | ?????????????????????????????????????????????????? | | ?????????????????????????????????????????????????? | | ????????????????#????????????????????????????????? | | ????????????????# ??????????????###?????####?????? | | ???????????????? ?????????????# ##### #?????? | | ????????????????? ##??????????# #?????? | | ?????????????????? ""???????????# ???????? | | ??????????????????? "" ??########?# ######????? | | ????????????????????"" ?## ### ### ##???? | | ???????????????????## ##@ ##??? | | ???????????????????# #RR ## ###? | | ???????????????????# *&R### ### #### ## | | ???????????????????## "#?###?# #??# # | | ???????????????????# #????# #??## # | | ????????????????? "#???# #???## " # | | ??????????????""""" ### "#??# #????#%=### | | ??????????????"#"#"##??# " ?# #???## ### | | ???????????????#""#???? ###### | | ???????????????" ????? ###?# """" | | ??????????????????????? ### ###???# " | | ??????????????????????? ##?# #??????## | | ???????????????????????###??## #????????# | | ?????????????????????????????####??###???# | | ?????????????????????????????####### ### | | ????????????????????????? =% | | ????????????????????????? ! | | ????????????????????????? # ### | | ?????????????????????????? ### #?#### | | ?????????????????????????? #??###????? | | ??????????????????????????? ##??????????? | | ??????????????????????????? ## ????????????" | | ??????????????????????????? ##??##????????????? | | ????????????????????????????#???????????????????? | | ????????????????????????????????????????????????? | +----------------------------------------------------+ Best States ------------- Heat Dissipation 39 Energy Generation 15 Energy Capacity 250 Matter Stores 300 Matter Capacity 300 Sight Range 16 Robot Scan Range 14 Terrain Scan Density 10 Armor Coverage 150 Resistance: KI 35 Resistance: TH 35 Resistance: EX 35 Resistance: EM 35 Resistance: I 35 Resistance: S 35 Resistance: P 35 Utility Shielding 33 Evasion (%) 50 Targeting Accuracy 5 Recoil Reduction 2 Offensive Hacking 20 Item Schematics ----------------- None Robot Schematics ------------------ None Fabricated ------------ Nothing Repaired ---------- Nothing Studied --------- None Alien Tech Used ----------------- None Achievements -------------- None Challenges ------------ None Game ------ Seed StructuralAlertBattery Manual? 0 Play Time 00:17:18 Cumulative 255.9 hours Start 2026.01.07 @ 09:27:17 End 2026.01.07 @ 09:43:29 Sessions 1 Manual Loads 0 Difficulty Explorer Special Mode None Game No. 403 Rogue 0 Adventurer 0 Explorer 403 Win Type - Total 0 Types 0/0/0/0/0/0/0/0/0/0 Lore% 72 Gallery% 69 Achievement% 54 Wizard Run 0 Options --------- Layout 1 ASCII 0 Keyboard 0 Movement Mouse Keybinds 0 Fullscreen 1 Font 24/Smallcaps Map View 50x35 Zoom Use 0% Tactical HUD 1 Map Filters NONE Filters NONE Steam 1 RUN: 3bf035c4-01fd-47be-a4e0-126ae9873937